fUSD/lending_fUSD_20250416
["ID","MTS","AMOUNT","RATE_DAILY","PERIOD"]
[358179209,1744816372080,-500.0,0.00056986,120]
[358179210,1744816372090,-1108.66,0.00056986,120]
[358179211,1744816372099,-687.69,0.00056986,120]
[358179212,1744816372109,-1033.16,0.00056986,120]
[358179213,1744816372120,-1795.89,0.00056986,120]
[358179214,1744816372129,-583.59,0.00056986,120]
[358179215,1744816372139,-500.0,0.00056986,120]
[358179216,1744816372149,-2030.25,0.00056986,120]
[358179217,1744816372158,-500.0,0.00056986,120]
[358179218,1744816372168,-818.2,0.00056986,120]
[358179219,1744816372177,-500.0,0.00056986,120]
[358179220,1744816372186,-771.35,0.00056986,120]
[358179221,1744816372196,-904.17,0.00056986,120]
[358179222,1744816372205,-980.77,0.00056986,120]
[358179223,1744816372217,-500.0,0.00056986,120]
[358179224,1744816372227,-756.77,0.00056986,120]
[358179225,1744816372236,-501.63,0.00056986,120]
[358179226,1744816372246,-1324.33,0.00056986,120]
[358179227,1744816372255,-983.87,0.00056986,120]
[358179228,1744816372264,-774.19,0.00056986,120]
[358179229,1744816372274,-519.62,0.00056986,120]
[358179230,1744816372283,-624.58051011,0.00056986,120]
[358179231,1744816372293,-2150.43,0.00056986,120]
[358179232,1744816372303,-1188.94,0.00056986,120]
[358179233,1744816372312,-695.81,0.00056986,118]
[358179234,1744816372322,-2664.25,0.00056986,120]
[358179235,1744816372331,-604.56,0.00056986,120]
[358179236,1744816372341,-500.0,0.00056986,120]
[358179237,1744816372350,-1283.85,0.00056986,120]
[358179238,1744816372360,-905.89,0.00056986,120]
[358179239,1744816372369,-748.27,0.00056986,120]
[358179240,1744816372378,-1176.6,0.00056986,120]
[358179241,1744816372387,-866.49,0.00056986,120]
[358179242,1744816372396,-967.07,0.00056986,120]
[358179243,1744816372406,-500.0,0.00056986,120]
[358179244,1744816372415,-500.0,0.00056986,120]
[358179245,1744816372425,-671.83,0.00056986,120]
[358179246,1744816372437,-1850.78,0.00056986,120]
[358179247,1744816372447,-500.0,0.00056986,120]
[358179248,1744816372456,-1800.53,0.00056986,120]
[358179249,1744816372465,-703.86,0.00056986,120]
[358179250,1744816372474,-936.84,0.00056986,120]
[358179251,1744816372483,-546.57,0.00056986,120]
[358179252,1744816372493,-1495.21,0.00056986,120]
[358179253,1744816372503,-929.38,0.00056986,120]
[358179254,1744816372513,-1191.58,0.00056986,35]
[358179255,1744816372523,-717.11,0.00056986,30]
[358179256,1744816372532,-781.09,0.00056986,120]
[358179257,1744816372542,-1870.74,0.00056986,120]
[358179258,1744816372552,-961.01,0.00056986,120]
[358179259,1744816372562,-1524.54,0.00056986,120]
[358179260,1744816372572,-12177.31,0.00056986,120]
[358179261,1744816372582,-3102.96,0.00056986,120]
[358179262,1744816372592,-820.23,0.00056986,120]
[358179263,1744816372601,-742.51,0.00056986,120]
[358179264,1744816372611,-845.8,0.00056986,120]
[358179265,1744816372621,-707.69,0.00056986,120]
[358179266,1744816372631,-522.09,0.00056986,120]
[358179267,1744816372641,-769.64,0.00056986,120]
[358179268,1744816372651,-500.0,0.00056986,120]
[358179269,1744816372661,-1217.91,0.00056986,120]
[358179270,1744816372670,-270.99,0.00057,10]
[358179271,1744816372679,-250.0,0.00057,10]
[358179272,1744816372690,-1250.0,0.00057,2]
[358179273,1744816372700,-724.88351652,0.00057,15]
[358179274,1744816372709,-200.0,0.00057,15]
[358179275,1744816372719,-243.46808254,0.00057,2]
[358179276,1744816372729,-162.31205502,0.00057,2]
[358179277,1744816372739,-151.0,0.00057,120]
[358179278,1744816372748,-167.53699667,0.00057,30]
[358179279,1744816372757,-151.0,0.00057,120]
[358179280,1744816372767,-151.0,0.00057,120]
[358179281,1744816372777,-151.0,0.00057,120]
[358179282,1744816372787,-1000.0,0.00057,120]
[358179283,1744816372797,-151.0,0.00057,120]
[358179284,1744816372807,-1068.0,0.00057,120]
[358179285,1744816372818,-1000000.0,0.00057,120]
[358179286,1744816372828,-195.8498557,0.00057009,110]
[358179287,1744816372838,-150.0,0.00057027,120]
[358179288,1744816372849,-235.72743076,0.0005703,120]
[358179289,1744816372859,-177.94385871,0.0005703,120]
[358179290,1744816372868,-794.54,0.00057055,120]
[358179291,1744816372878,-150.0,0.00057062,120]
[358179292,1744816372888,-235.72743076,0.00057094,120]
[358179293,1744816372898,-177.94385871,0.00057094,120]
[358179294,1744816372908,-150.0,0.00057132,120]
[358179295,1744816372917,-150.0,0.00057146,120]
[358179296,1744816372927,-150.0,0.00057149,120]
[358179297,1744816372937,-235.72743076,0.00057157,120]
[358179298,1744816372951,-177.94385871,0.00057157,120]
[358179299,1744816372962,-235.72743076,0.00057221,120]
[358179300,1744816372971,-177.94385871,0.00057221,120]
[358179301,1744816372983,-150.0,0.00057237,120]
[358179302,1744816372993,-150.0,0.00057237,120]
[358179303,1744816373002,-500.0,0.0005726,8]
[358179304,1744816373012,-500.0,0.0005726,120]
[358179305,1744816373022,-507.85,0.0005726,2]
[358179306,1744816373033,-500.0,0.0005726,2]
[358179307,1744816373043,-1354.34,0.0005726,120]
[358179308,1744816373053,-524.21,0.0005726,120]
[358179309,1744816373063,-754.91,0.0005726,120]
[358179310,1744816373072,-795.37,0.0005726,120]
[358179311,1744816373082,-879.05,0.0005726,120]
[358179312,1744816373091,-795.56,0.0005726,120]
[358179313,1744816373101,-691.53,0.0005726,120]
[358179314,1744816373111,-1105.05,0.0005726,120]
[358179315,1744816373121,-1002.17,0.0005726,120]
[358179316,1744816373131,-740.53,0.0005726,120]
[358179317,1744816373140,-563.62,0.0005726,30]
[358179318,1744816373150,-753.23,0.0005726,120]
[358179319,1744816373160,-370.28995458,0.0005726,120]
[358179320,1744816373171,-508.84,0.0005726,120]
[358179321,1744816373181,-693.95,0.0005726,120]
[358179322,1744816373191,-1260.37,0.0005726,120]
[358179323,1744816373201,-758.9,0.0005726,120]
[358179324,1744816373211,-1826.89,0.0005726,120]
[358179325,1744816373221,-159.47110161,0.0005726,120]
[358179326,1744816373230,-500.0,0.0005726,120]
[358179327,1744816373239,-685.02,0.0005726,120]
[358179328,1744816373248,-500.0,0.0005726,120]
[358179329,1744816373257,-667.82,0.0005726,120]
[358179330,1744816373266,-500.0,0.0005726,120]
[358179331,1744816373275,-1108.66,0.0005726,120]
[358179332,1744816373285,-687.69,0.0005726,120]
[358179333,1744816373294,-1033.16,0.0005726,120]
[358179334,1744816373304,-1795.89,0.0005726,120]
[358179335,1744816373313,-583.59,0.0005726,120]
[358179336,1744816373323,-500.0,0.0005726,120]
[358179337,1744816373334,-2030.25,0.0005726,120]
[358179338,1744816373343,-500.0,0.0005726,120]
[358179339,1744816373353,-818.2,0.0005726,120]
[358179340,1744816373363,-500.0,0.0005726,120]
[358179341,1744816373372,-771.35,0.0005726,120]
[358179342,1744816373382,-904.17,0.0005726,120]
[358179343,1744816373391,-980.77,0.0005726,120]
[358179344,1744816373401,-500.0,0.0005726,120]
[358179345,1744816373409,-756.77,0.0005726,120]
[358179346,1744816373418,-501.63,0.0005726,120]
[358179347,1744816373426,-1324.33,0.0005726,120]
[358179348,1744816373436,-983.87,0.0005726,120]
[358179349,1744816373447,-774.19,0.0005726,120]
[358179350,1744816373457,-519.62,0.0005726,120]
[358179351,1744816373467,-2150.43,0.0005726,120]
[358179352,1744816373477,-1188.94,0.0005726,120]
[358179353,1744816373486,-695.81,0.0005726,118]
[358179354,1744816373496,-2664.25,0.0005726,120]
[358179355,1744816373506,-604.56,0.0005726,120]
[358179356,1744816373517,-500.0,0.0005726,120]
[358179357,1744816373525,-1283.85,0.0005726,120]
[358179358,1744816373535,-905.89,0.0005726,120]
[358179359,1744816373546,-748.27,0.0005726,120]
[358179360,1744816373556,-1176.6,0.0005726,120]
[358179361,1744816373566,-866.49,0.0005726,120]
[358179362,1744816373576,-967.07,0.0005726,120]
[358179363,1744816373585,-500.0,0.0005726,120]
[358179364,1744816373594,-500.50416629,0.0005726,120]
[358179365,1744816373602,-671.83,0.0005726,120]
[358179366,1744816373612,-1850.78,0.0005726,120]
[358179367,1744816373622,-500.0,0.0005726,120]
[358179368,1744816373633,-1800.53,0.0005726,120]
[358179369,1744816373644,-703.86,0.0005726,120]
[358179370,1744816373653,-936.84,0.0005726,120]
[358179371,1744816373663,-546.57,0.0005726,120]
[358179372,1744816373676,-1495.21,0.0005726,120]
[358179373,1744816373686,-929.38,0.0005726,120]
[358179374,1744816373696,-1191.58,0.0005726,35]
[358179375,1744816373706,-717.11,0.0005726,30]
[358179376,1744816373717,-781.09,0.0005726,120]
[358179377,1744816373727,-1870.74,0.0005726,120]
[358179378,1744816373737,-961.01,0.0005726,120]
[358179379,1744816373747,-1524.54,0.0005726,120]
[358179380,1744816373757,-12177.31,0.0005726,120]
[358179381,1744816373767,-3102.96,0.0005726,120]
[358179382,1744816373778,-820.23,0.0005726,120]
[358179383,1744816373788,-742.51,0.0005726,120]
[358179384,1744816373806,-845.8,0.0005726,120]
[358179385,1744816373817,-707.69,0.0005726,120]
[358179386,1744816373828,-522.09,0.0005726,120]
[358179387,1744816373839,-151.0,0.0005726,120]
[358179388,1744816373850,-769.64,0.0005726,120]
[358179389,1744816373860,-151.0,0.0005726,120]
[358179390,1744816373871,-346.32209523,0.0005726,120]
[358179391,1744816373882,-1217.91,0.0005726,120]
[358179392,1744816373892,-235.72743076,0.00057285,120]
[358179393,1744816373903,-177.94385871,0.00057285,120]
[358179394,1744816373912,-150.0,0.00057324,120]
[358179395,1744816373922,-150.0,0.00057342,120]
[358179396,1744816373933,-235.72743076,0.00057348,120]
[358179397,1744816373947,-177.94385871,0.00057348,120]
[358179398,1744816373958,-150.0,0.00057364,120]
[358179399,1744816373969,-235.72743076,0.00057412,120]
[358179400,1744816373979,-150.0,0.00057412,120]
[358179401,1744816373990,-177.94385871,0.00057412,120]
[358179402,1744816374000,-150.0,0.00057447,120]
[358179403,1744816374011,-235.72743076,0.00057475,120]
[358179404,1744816374022,-177.94385871,0.00057475,120]
[358179405,1744816374032,-150.0,0.00057499,120]
[358179406,1744816374043,-63951.89138185,0.000575,62]
[358179407,1744816374054,-1000000.0,0.000575,120]
[358179408,1744816374064,-151.0,0.000575,120]
[358179409,1744816374075,-151.0,0.000575,120]
[358179410,1744816374086,-151.0,0.000575,120]
[358179411,1744816374097,-151.0,0.000575,120]
[358179412,1744816374107,-151.0,0.000575,120]
[358179413,1744816374117,-272.166906,0.000575,120]
[358179414,1744816374127,-272.166906,0.000575,120]
[358179415,1744816374138,-151.0,0.000575,120]
[358179416,1744816374149,-151.0,0.000575,120]
[358179417,1744816374159,-203.1475,0.00057516,120]
[358179418,1744816374170,-1200.0,0.00057534,120]
[358179419,1744816374180,-500.0,0.00057534,120]
[358179420,1744816374191,-500.0,0.00057534,8]
[358179421,1744816374201,-601.33,0.00057534,120]
[358179422,1744816374212,-507.85,0.00057534,2]
[358179423,1744816374222,-500.0,0.00057534,2]
[358179424,1744816374233,-1354.34,0.00057534,120]
[358179425,1744816374243,-524.21,0.00057534,120]
[358179426,1744816374253,-754.91,0.00057534,120]
[358179427,1744816374264,-795.37,0.00057534,120]
[358179428,1744816374273,-879.05,0.00057534,120]
[358179429,1744816374284,-795.56,0.00057534,120]
[358179430,1744816374294,-691.53,0.00057534,120]
[358179431,1744816374304,-1105.05,0.00057534,120]
[358179432,1744816374315,-1002.17,0.00057534,120]
[358179433,1744816374325,-740.53,0.00057534,120]
[358179434,1744816374336,-563.62,0.00057534,30]
[358179435,1744816374346,-753.23,0.00057534,120]
[358179436,1744816374356,-508.84,0.00057534,120]
[358179437,1744816374366,-693.95,0.00057534,120]
[358179438,1744816374377,-1260.37,0.00057534,120]
[358179439,1744816374387,-758.9,0.00057534,120]
[358179440,1744816374397,-1826.89,0.00057534,120]
[358179441,1744816374407,-511.2524933,0.00057534,120]
[358179442,1744816374417,-685.02,0.00057534,120]
[358179443,1744816374427,-500.0,0.00057534,120]
[358179444,1744816374438,-667.82,0.00057534,120]
[358179445,1744816374448,-500.0,0.00057534,120]
[358179446,1744816374459,-1108.66,0.00057534,120]
[358179447,1744816374470,-687.69,0.00057534,120]
[358179448,1744816374480,-1033.16,0.00057534,120]
[358179449,1744816374491,-1795.89,0.00057534,120]
[358179450,1744816374501,-583.59,0.00057534,120]
[358179451,1744816374512,-500.0,0.00057534,120]
[358179452,1744816374523,-2030.25,0.00057534,120]
[358179453,1744816374534,-341.50662842,0.00057534,120]
[358179454,1744816374544,-818.2,0.00057534,120]
[358179455,1744816374555,-543.17141635,0.00057534,120]
[358179456,1744816374566,-771.35,0.00057534,120]
[358179457,1744816374576,-904.17,0.00057534,120]
[358179458,1744816374592,-980.77,0.00057534,120]
[358179459,1744816374604,-328.39632157,0.00057534,120]
[358179460,1744816374615,-756.77,0.00057534,120]
[358179461,1744816374626,-501.63,0.00057534,120]
[358179462,1744816374636,-1324.33,0.00057534,120]
[358179463,1744816374648,-983.87,0.00057534,120]
[358179464,1744816374658,-774.19,0.00057534,120]
[358179465,1744816374669,-519.62,0.00057534,120]
[358179466,1744816374680,-2150.43,0.00057534,120]
[358179467,1744816374690,-1188.94,0.00057534,120]
[358179468,1744816374701,-695.81,0.00057534,118]
[358179469,1744816374711,-2664.25,0.00057534,120]
[358179470,1744816374722,-604.56,0.00057534,120]
[358179471,1744816374732,-500.0,0.00057534,120]
[358179472,1744816374743,-1283.85,0.00057534,120]
[358179473,1744816374754,-905.89,0.00057534,120]
[358179474,1744816374764,-748.27,0.00057534,120]
[358179475,1744816374775,-1176.6,0.00057534,120]
[358179476,1744816374785,-866.49,0.00057534,120]
[358179477,1744816374795,-967.07,0.00057534,120]
[358179478,1744816374806,-500.0,0.00057534,120]
[358179479,1744816374816,-500.0,0.00057534,120]
[358179480,1744816374826,-671.83,0.00057534,120]
[358179481,1744816374837,-1850.78,0.00057534,120]
[358179482,1744816374847,-500.0,0.00057534,120]
[358179483,1744816374857,-1800.53,0.00057534,120]
[358179484,1744816374868,-703.86,0.00057534,120]
[358179485,1744816374879,-936.84,0.00057534,120]
[358179486,1744816374889,-546.57,0.00057534,120]
[358179487,1744816374900,-929.38,0.00057534,120]
[358179488,1744816374910,-1191.58,0.00057534,35]
[358179489,1744816374920,-1495.21,0.00057534,120]
[358179490,1744816374931,-717.11,0.00057534,30]
[358179491,1744816374941,-781.09,0.00057534,120]
[358179492,1744816374954,-1870.74,0.00057534,120]
[358179493,1744816374964,-961.01,0.00057534,120]
[358179494,1744816374975,-1524.54,0.00057534,120]
[358179495,1744816375199,-12177.31,0.00057534,120]
[358179496,1744816375209,-3102.96,0.00057534,120]
[358179497,1744816375222,-820.23,0.00057534,120]
[358179498,1744816375232,-742.51,0.00057534,120]
[358179499,1744816375243,-845.8,0.00057534,120]
[358179500,1744816375254,-707.69,0.00057534,120]
[358179501,1744816375263,-522.09,0.00057534,120]
[358179502,1744816375275,-769.64,0.00057534,120]
[358179503,1744816375286,-1217.91,0.00057534,120]
[358179504,1744816375295,-1387.8,0.00057534,120]
[358179505,1744816375307,-235.72743076,0.00057539,120]
[358179506,1744816375317,-177.94385871,0.00057539,120]
[358179507,1744816375327,-150.0,0.00057552,120]
[358179508,1744816375337,-200.0,0.0005757,15]
[358179509,1744816375347,-150.0,0.00057581,120]
[358179510,1744816375357,-150.0,0.00057587,120]
[358179511,1744816375367,-235.72743076,0.00057603,120]
[358179512,1744816375377,-177.94385871,0.00057603,120]
[358179513,1744816375387,-151.0,0.00057616,120]
[358179514,1744816375398,-150.0,0.00057657,120]
[358179515,1744816375407,-235.72743076,0.00057666,120]
[358179516,1744816375417,-177.94385871,0.00057666,120]
[358179517,1744816375426,-150.0,0.00057674,120]
[358179518,1744816375436,-235.72743076,0.0005773,120]
[358179519,1744816375445,-177.94385871,0.0005773,120]
[358179520,1744816375455,-150.0,0.00057762,120]
[358179521,1744816375465,-150.0,0.00057762,120]
[358179522,1744816375475,-400.0,0.0005777,30]
[358179523,1744816375485,-700.0,0.0005777,30]
[358179524,1744816375494,-235.72743076,0.00057794,120]
[358179525,1744816375504,-177.94385871,0.00057794,120]
[358179526,1744816375514,-150.0,0.00057798,120]
[358179527,1744816375524,-160.0,0.000578,120]
[358179528,1744816375533,-1400.2422,0.000578,30]
[358179529,1744816375543,-1400.2422,0.000578,30]
[358179530,1744816375552,-784.8505,0.000578,30]
[358179531,1744816375562,-784.8505,0.000578,30]
[358179532,1744816375572,-500.0,0.00057808,8]
[358179533,1744816375582,-507.85,0.00057808,2]
[358179534,1744816375591,-164.93,0.00057808,2]
[358179535,1744816375601,-1354.34,0.00057808,120]
[358179536,1744816375611,-524.21,0.00057808,120]
[358179537,1744816375620,-754.91,0.00057808,120]
[358179538,1744816375630,-795.37,0.00057808,120]
[358179539,1744816375639,-879.05,0.00057808,120]
[358179540,1744816375649,-795.56,0.00057808,120]
[358179541,1744816375658,-691.53,0.00057808,120]
[358179542,1744816375667,-1105.05,0.00057808,120]
[358179543,1744816375677,-1002.17,0.00057808,120]
[358179544,1744816375686,-740.53,0.00057808,120]
[358179545,1744816375695,-563.62,0.00057808,30]
[358179546,1744816375705,-753.23,0.00057808,120]
[358179547,1744816375714,-508.84,0.00057808,120]
[358179548,1744816375723,-693.95,0.00057808,120]
[358179549,1744816375733,-1260.37,0.00057808,120]
[358179550,1744816375742,-758.9,0.00057808,120]
[358179551,1744816375752,-1826.89,0.00057808,120]
[358179552,1744816375762,-685.02,0.00057808,120]
[358179553,1744816375772,-500.0,0.00057808,120]
[358179554,1744816375783,-667.82,0.00057808,120]
[358179555,1744816375794,-319.53065748,0.00057808,120]
[358179556,1744816375805,-1108.66,0.00057808,120]
[358179557,1744816375815,-687.69,0.00057808,120]
[358179558,1744816375825,-1033.16,0.00057808,120]
[358179559,1744816375835,-1795.89,0.00057808,120]
[358179560,1744816375845,-583.59,0.00057808,120]
[358179561,1744816375855,-500.0,0.00057808,120]
[358179562,1744816375865,-2030.25,0.00057808,120]
[358179563,1744816375875,-818.2,0.00057808,120]
[358179564,1744816375886,-771.35,0.00057808,120]
[358179565,1744816375895,-904.17,0.00057808,120]
[358179566,1744816375905,-980.77,0.00057808,120]
[358179567,1744816375915,-756.77,0.00057808,120]
[358179568,1744816375925,-501.63,0.00057808,120]
[358179569,1744816375934,-1324.33,0.00057808,120]
[358179570,1744816375945,-983.87,0.00057808,120]
[358179571,1744816375955,-774.19,0.00057808,120]
[358179572,1744816375964,-519.62,0.00057808,120]
[358179573,1744816375974,-2150.43,0.00057808,120]
[358179574,1744816375985,-1188.94,0.00057808,120]
[358179575,1744816375995,-695.81,0.00057808,118]
[358179576,1744816376005,-2664.25,0.00057808,120]
[358179577,1744816376014,-604.56,0.00057808,120]
[358179578,1744816376024,-533.51965787,0.00057808,120]
[358179579,1744816376034,-1283.85,0.00057808,120]
[358179580,1744816376044,-905.89,0.00057808,120]
[358179581,1744816376055,-748.27,0.00057808,120]
[358179582,1744816376065,-1176.6,0.00057808,120]
[358179583,1744816376075,-866.49,0.00057808,120]
[358179584,1744816376084,-967.07,0.00057808,120]
[358179585,1744816376094,-500.0,0.00057808,120]
[358179586,1744816376104,-671.83,0.00057808,120]
[358179587,1744816376113,-1850.78,0.00057808,120]
[358179588,1744816376123,-318.20891835,0.00057808,120]
[358179589,1744816376134,-1800.53,0.00057808,120]
[358179590,1744816376144,-703.86,0.00057808,120]
[358179591,1744816376153,-936.84,0.00057808,120]
[358179592,1744816376162,-546.57,0.00057808,120]
[358179593,1744816376172,-929.38,0.00057808,120]
[358179594,1744816376182,-1191.58,0.00057808,35]
[358179595,1744816376191,-1495.21,0.00057808,120]
[358179596,1744816376201,-717.11,0.00057808,30]
[358179597,1744816376210,-781.09,0.00057808,120]
[358179598,1744816376220,-1870.74,0.00057808,120]
[358179599,1744816376230,-961.01,0.00057808,120]
[358179600,1744816376240,-1524.54,0.00057808,120]
[358179601,1744816376250,-12177.31,0.00057808,120]
[358179602,1744816376260,-3102.96,0.00057808,120]
[358179603,1744816376270,-820.23,0.00057808,120]
[358179604,1744816376279,-742.51,0.00057808,120]
[358179605,1744816376289,-845.8,0.00057808,120]
[358179606,1744816376298,-707.69,0.00057808,120]
[358179607,1744816376308,-522.09,0.00057808,120]
[358179608,1744816376318,-769.64,0.00057808,120]
[358179609,1744816376329,-1217.91,0.00057808,120]
[358179610,1744816376339,-150.0,0.00057849,120]
[358179611,1744816376349,-235.72743076,0.00057857,120]
[358179612,1744816376359,-177.94385871,0.00057857,120]
[358179613,1744816376368,-150.0,0.00057867,120]
[358179614,1744816376378,-204.49407823,0.000579,2]
[358179615,1744816376388,-235.72743076,0.00057921,120]
[358179616,1744816376398,-177.94385871,0.00057921,120]
[358179617,1744816376408,-150.0,0.00057937,120]
[358179618,1744816376418,-150.0,0.00057972,120]
[358179619,1744816376427,-235.72743076,0.00057985,120]
[358179620,1744816376437,-177.94385871,0.00057985,120]
[358179621,1744816376447,-280.30153189,0.00057999,120]
[358179622,1744816376456,-500.0,0.00057999,120]
[358179623,1744816376466,-500.0,0.00057999,120]
[358179624,1744816376476,-339.55778747,0.00057999,120]
[358179625,1744816376486,-150.0,0.00057999,120]
[358179626,1744816376495,-27966.16923487,0.00058,2]
[358179627,1744816376505,-952422.73686061,0.00058,120]
[358179628,1744816376515,-1000000.0,0.00058,120]
[358179629,1744816376524,-400.0,0.00058,120]
[358179630,1744816376534,-800.0,0.00058,120]
[358179631,1744816376544,-242.61577557,0.00058,120]
[358179632,1744816376556,-11699.0,0.00058,120]
[358179633,1744816376566,-3066.0,0.00058,120]
[358179634,1744816376576,-1000000.0,0.00058,120]
[358179635,1744816376586,-1000000.0,0.00058,120]
[358179636,1744816376596,-151.0,0.00058,120]
[358179637,1744816376607,-151.0,0.00058,120]
[358179638,1744816376617,-151.0,0.00058,120]
[358179639,1744816376627,-278.0,0.00058,120]
[358179640,1744816376636,-250.0,0.00058,30]
[358179641,1744816376647,-250.0,0.00058,120]
[358179642,1744816376656,-151.0,0.00058,120]
[358179643,1744816376666,-210.646103,0.00058,120]
[358179644,1744816376676,-151.0,0.00058,120]
[358179645,1744816376686,-151.0,0.00058,120]
[358179646,1744816376696,-151.0,0.00058,120]
[358179647,1744816376705,-151.0,0.00058,120]
[358179648,1744816376715,-179.52905327,0.00058,120]
[358179649,1744816376725,-151.0,0.00058,120]
[358179650,1744816376734,-178.761681,0.00058,120]
[358179651,1744816376743,-151.0,0.00058,120]
[358179652,1744816376753,-151.0,0.00058,120]
[358179653,1744816376763,-291.650808,0.00058,120]
[358179654,1744816376772,-291.650808,0.00058,120]
[358179655,1744816376783,-152.162935,0.00058,120]
[358179656,1744816376793,-151.0,0.00058,120]
[358179657,1744816376803,-200.0,0.00058,120]
[358179658,1744816376812,-207.4,0.00058,120]
[358179659,1744816376821,-215.0738,0.00058,120]
[358179660,1744816376831,-223.0315306,0.00058,120]
[358179661,1744816376841,-231.28369723,0.00058,120]
[358179662,1744816376850,-239.84119403,0.00058,120]
[358179663,1744816376859,-248.71531821,0.00058,120]
[358179664,1744816376869,-257.91778498,0.00058,120]
[358179665,1744816376879,-267.46074303,0.00058,120]
[358179666,1744816376889,-277.35679052,0.00058,120]
[358179667,1744816376899,-287.61899177,0.00058,120]
[358179668,1744816376909,-298.0,0.00058,120]
[358179669,1744816376919,-298.26089446,0.00058,120]
[358179670,1744816376928,-309.29654756,0.00058,120]
[358179671,1744816376938,-320.74051982,0.00058,120]
[358179672,1744816376952,-274.8649,0.00058,120]
[358179673,1744816376961,-332.60791905,0.00058,120]
[358179674,1744816376971,-344.91441206,0.00058,120]
[358179675,1744816376980,-357.6762453,0.00058,120]
[358179676,1744816376991,-370.91026638,0.00058,120]
[358179677,1744816377000,-384.63394623,0.00058,120]
[358179678,1744816377010,-600.0,0.00058,120]
[358179679,1744816377019,-151.0,0.00058,120]
[358179680,1744816377030,-151.42457422,0.00058,120]
[358179681,1744816377040,-151.0,0.00058,120]
[358179682,1744816377051,-500.0,0.00058,120]
[358179683,1744816377062,-500.0,0.00058,120]
[358179684,1744816377072,-500.0,0.00058,120]
[358179685,1744816377082,-500.0,0.00058,120]
[358179686,1744816377092,-500.0,0.00058,120]
[358179687,1744816377101,-500.0,0.00058,120]
[358179688,1744816377111,-500.0,0.00058,120]
[358179689,1744816377120,-500.0,0.00058,120]
[358179690,1744816377130,-817.97469344,0.00058,120]
[358179691,1744816377140,-300.48079926,0.00058,120]
[358179692,1744816377149,-151.0,0.00058,120]
[358179693,1744816377159,-166.0,0.00058,120]
[358179694,1744816377168,-173.670902,0.00058,120]
[358179695,1744816377178,-151.0,0.00058,120]
[358179696,1744816377187,-151.0,0.00058,120]
[358179697,1744816377196,-272.166906,0.00058,120]
[358179698,1744816377206,-272.166906,0.00058,120]
[358179699,1744816377216,-151.0,0.00058,120]
[358179700,1744816377227,-151.0,0.00058,120]
[358179701,1744816377237,-151.0,0.00058,120]
[358179702,1744816377247,-151.0,0.00058,120]
[358179703,1744816377257,-47568.6140801,0.00058002,2]
[358179704,1744816377267,-859.9229991,0.00058002,2]
[358179705,1744816377276,-182.4305365,0.00058002,2]
[358179706,1744816377286,-150.0,0.00058015,120]
[358179707,1744816377295,-150.0,0.00058024,120]
[358179708,1744816377306,-1592.0976427,0.00058042,2]